bitfinex-derivatives/quotes_BTCF0:USTF0_20260207
["timestamp","ask_amount","ask_price","bid_price","bid_amount"]
[1770452944297,0.57532331,68554.0,68525.0,0.014601]
[1770452944485,0.014593,68563.0,68535.0,0.014599]
[1770452944687,0.58991731,68561.0,68531.0,0.03863005]
[1770452944990,0.58991731,68557.0,68531.0,0.02403005]
[1770452945295,0.58991831,68555.0,68519.0,0.02403005]
[1770452945494,0.57532331,68547.0,68519.0,0.03863205]
[1770452945683,0.57532331,68545.0,68519.0,0.03863205]
[1770452945888,0.57532331,68545.0,68530.0,0.001]
[1770452946584,0.57532331,68545.0,68519.0,0.03863205]
[1770452946784,0.57532331,68545.0,68519.0,0.02503005]
[1770452946990,0.58055692,68556.0,68544.0,0.002]
[1770452947586,0.58055692,68556.0,68528.0,0.0146]
[1770452947788,0.59515192,68555.0,68524.0,0.014601]
[1770452947990,0.58055692,68555.0,68528.0,0.0146]
[1770452948190,0.00018483,68554.0,68528.0,0.0146]
[1770452948392,0.00016872,68553.0,68530.0,0.0146]
[1770452948593,0.58055692,68555.0,68530.0,0.0146]
[1770452949797,0.58055692,68555.0,68532.0,0.014599]
[1770452950200,0.58055692,68555.0,68554.0,0.0023]
[1770452950396,0.58055692,68555.0,68532.0,0.014599]
[1770452950596,0.58055692,68555.0,68554.0,0.0015]
[1770452951093,0.58055692,68555.0,68534.0,0.014599]
[1770452951293,0.56649204,68574.0,68545.0,0.014597]
[1770452951600,0.56649204,68569.0,68554.0,0.0011]
[1770452951998,0.56649204,68569.0,68546.0,0.014597]
[1770452952701,0.56649204,68569.0,68555.0,0.0015]
[1770452952899,0.0001219,68568.0,68542.0,0.05052387]
[1770452953201,0.56649204,68569.0,68568.0,0.0015]
[1770452953403,0.56649204,68569.0,68542.0,0.05052387]
[1770452953596,0.56649204,68569.0,68547.0,0.014596]
[1770452954307,0.56748039,68568.0,68547.0,0.014596]
[1770452954603,0.56665162,68567.0,68547.0,0.014596]
[1770452955399,0.56665162,68567.0,68566.0,0.0011]
[1770452955604,0.56628496,68561.0,68530.0,0.05004512]
[1770452955804,0.56628496,68557.0,68530.0,0.06464512]
[1770452956003,0.56628496,68555.0,68530.0,0.06464512]
[1770452956304,0.56545362,68554.0,68530.0,0.06464512]
[1770452956799,0.56545362,68554.0,68535.0,0.014599]
[1770452956999,0.56545362,68564.0,68553.0,0.0024]
[1770452957503,0.56545362,68562.0,68539.0,0.014598]
[1770452957705,0.56545362,68560.0,68541.0,0.014598]
[1770452958300,0.56545362,68560.0,68559.0,0.0046]
[1770452958599,0.56545362,68560.0,68544.0,0.014597]
[1770452958792,0.56613111,68569.0,68559.0,0.0015]
[1770452959507,0.56613111,68569.0,68543.0,0.014597]
[1770452959905,0.56613111,68567.0,68543.0,0.014597]
[1770452960101,0.56613111,68565.0,68540.0,0.014598]
[1770452960406,0.56649389,68563.0,68540.0,0.014598]
[1770452960605,0.56649389,68561.0,68530.0,0.04911631]
[1770452960799,0.56696122,68560.0,68530.0,0.04911631]
[1770452961000,0.56696122,68556.0,68530.0,0.04911631]
[1770452961201,0.56696122,68556.0,68537.0,0.014598]
[1770452961396,0.56696122,68556.0,68539.0,0.014598]
[1770452961702,0.56696122,68554.0,68521.0,0.04911631]
[1770452961901,0.56696122,68549.0,68522.0,0.014602]
[1770452962209,0.56696122,68547.0,68540.0,0.001]
[1770452962400,0.56257201,68545.0,68522.0,0.014602]
[1770452962706,0.014593,68565.0,68522.0,0.014602]
[1770452962707,0.56257201,68544.0,68522.0,0.014602]
[1770452963397,0.54846133,68544.0,68527.0,0.014601]
[1770452963604,0.54846133,68544.0,68543.0,0.0011]
[1770452963906,0.54846133,68544.0,68524.0,0.014601]
[1770452964310,0.54846133,68544.0,68526.0,0.014601]
[1770452964501,0.54846133,68544.0,68522.0,0.001]
[1770452964811,0.56257201,68535.0,68514.0,0.014603]
[1770452965105,0.56257201,68535.0,68515.0,0.014603]
[1770452965513,0.56257201,68535.0,68506.0,0.11502803]
[1770452965703,0.56257201,68533.0,68506.0,0.11502803]
[1770452966007,0.44832003,68554.0,68506.0,0.11502803]
[1770452966008,0.56257201,68531.0,68507.0,0.014605]
[1770452966410,0.00011884,68530.0,68507.0,0.014605]
[1770452966606,0.56257201,68531.0,68507.0,0.014605]
[1770452967008,0.00017716,68530.0,68507.0,0.014605]
[1770452967310,0.56257201,68531.0,68507.0,0.014605]
[1770452967508,0.56257201,68531.0,68506.0,0.11502803]
[1770452967698,0.56257201,68525.0,68504.0,0.00010876]
[1770452967904,0.014602,68522.0,68504.0,0.00010876]
[1770452968103,0.56257201,68521.0,68504.0,0.00010876]
[1770452968306,0.014599,68538.0,68483.0,0.10851195]
[1770452968307,0.56257201,68520.0,68483.0,0.10851195]
[1770452968509,0.43372503,68538.0,68485.0,0.10862071]
[1770452968510,0.56257201,68512.0,68485.0,0.10862071]
[1770452968813,0.56257201,68512.0,68494.0,0.014608]
[1770452969104,0.43372503,68529.0,68511.0,0.0027]
[1770452969105,0.56257201,68521.0,68511.0,0.0027]
[1770452969309,0.56257201,68519.0,68480.0,0.11132071]
[1770452969505,0.57717501,68517.0,68486.0,0.014609]
[1770452969702,0.56257201,68515.0,68486.0,0.014609]
[1770452969907,0.00017995,68514.0,68486.0,0.014609]
[1770452970106,0.56257201,68513.0,68489.0,0.0002]
[1770452970500,0.00011507,68512.0,68489.0,0.0002]
[1770452970701,0.44832503,68531.0,68489.0,0.0002]
[1770452970702,0.56268653,68511.0,68489.0,0.0002]
[1770452970905,0.56257201,68507.0,68477.0,0.014611]
[1770452971413,0.014601,68525.0,68463.0,0.0002]
[1770452971414,0.014608,68492.0,68463.0,0.0002]
[1770452971606,0.56257201,68491.0,68463.0,0.0002]
[1770452971807,0.56257201,68489.0,68463.0,0.00015]
[1770452972003,0.56257201,68487.0,68463.0,0.00015]
[1770452972507,0.56257201,68485.0,68463.0,0.0001]
[1770452972810,0.56257201,68483.0,68463.0,0.0001]
[1770452973013,0.014607,68497.0,68465.0,0.014614]
[1770452973208,0.56257201,68494.0,68463.0,0.11985588]
[1770452973410,0.56257201,68492.0,68464.0,0.014614]
[1770452973612,0.56257201,68490.0,68463.0,0.11985588]
[1770452973806,0.00010306,68489.0,68463.0,0.11985588]
[1770452974010,0.56257201,68488.0,68463.0,0.11985588]
[1770452974815,0.56257201,68488.0,68463.0,0.13446988]
[1770452975402,0.56257201,68488.0,68463.0,0.09446988]
[1770452975602,0.56257201,68488.0,68460.0,0.0002]
[1770452975912,0.014609,68490.0,68456.0,0.00012268]
[1770452975913,0.55528188,68486.0,68457.0,0.014616]
[1770452976112,0.55528188,68484.0,68457.0,0.014616]
[1770452976415,0.54689197,68504.0,68487.0,0.0028]
[1770452976615,0.54689197,68496.0,68487.0,0.0028]
[1770452976908,0.54689197,68496.0,68483.0,0.0042]
[1770452976909,0.00010237,68495.0,68483.0,0.0042]
[1770452977108,0.00017461,68494.0,68483.0,0.0042]
[1770452977310,0.54689197,68496.0,68483.0,0.0042]
[1770452977517,0.54689197,68496.0,68475.0,0.0002]
[1770452977911,0.54689197,68496.0,68471.0,0.014613]
[1770452978511,0.54689197,68496.0,68495.0,0.0014]
[1770452978717,0.54689197,68496.0,68471.0,0.014613]
[1770452979116,0.54689197,68496.0,68467.0,0.10932407]
[1770452979417,0.54768286,68495.0,68467.0,0.12393807]
[1770452979613,0.54768286,68494.0,68469.0,0.014613]
[1770452979817,0.54768286,68494.0,68472.0,0.014612]
[1770452980215,0.54768286,68515.0,68493.0,0.0026]
[1770452980515,0.54776701,68504.0,68493.0,0.0026]
[1770452980710,0.54776701,68502.0,68476.0,0.014612]
[1770452981121,0.54776701,68502.0,68478.0,0.014611]
[1770452981517,0.43372503,68526.0,68486.0,0.014609]
[1770452981518,0.54776701,68512.0,68486.0,0.014609]
[1770452981821,0.54776701,68510.0,68479.0,0.014611]
[1770452982121,0.54723368,68508.0,68479.0,0.014611]
[1770452982413,0.54781672,68506.0,68479.0,0.014611]
[1770452982811,0.54781672,68504.0,68479.0,0.014611]
[1770452983617,0.54781672,68504.0,68503.0,0.0029]
[1770452983817,0.54781672,68504.0,68488.0,0.0002]
[1770452984214,0.54994639,68502.0,68488.0,0.0002]
[1770452984821,0.54994639,68502.0,68501.0,0.0014]
[1770452985219,0.54994639,68502.0,68486.0,0.0002]
[1770452985819,0.55047975,68500.0,68480.0,0.0002]
[1770452986019,0.55041308,68498.0,68480.0,0.0002]
[1770452986222,0.55041308,68496.0,68476.0,0.0002]
[1770452986429,0.55036123,68495.0,68476.0,0.0002]
[1770452986719,0.55029456,68481.0,68453.0,0.014616]
[1770452986920,0.001,68502.0,68459.0,0.0993163]
[1770452986921,0.55022789,68490.0,68459.0,0.0993163]
[1770452987115,0.55022789,68490.0,68466.0,0.014614]
[1770452987724,0.55022789,68490.0,68489.0,0.0027]
[1770452987918,0.55022789,68490.0,68466.0,0.014614]
[1770452988114,0.55022789,68488.0,68465.0,0.0002]
[1770452988320,0.55022789,68486.0,68465.0,0.0002]
[1770452988520,0.55022789,68486.0,68464.0,0.0002]
[1770452988820,0.014606,68501.0,68464.0,0.0002]
[1770452988821,0.54430406,68485.0,68464.0,0.0002]
[1770452989028,0.54430406,68483.0,68464.0,0.0002]
[1770452989522,0.54430406,68482.0,68464.0,0.0002]
[1770452989724,0.54430406,68482.0,68463.0,0.0002]
[1770452990425,0.54430406,68482.0,68459.0,0.014615]
[1770452990426,0.54422432,68479.0,68456.0,0.00012268]
[1770452990727,0.55883532,68478.0,68461.0,0.0002]
[1770452990919,0.54422432,68476.0,68464.0,0.0002]
[1770452991327,0.54422432,68476.0,68456.0,0.00012268]
[1770452991328,0.014609,68487.0,68460.0,0.011615]
[1770452991518,0.55883332,68487.0,68460.0,0.12894201]
[1770452991719,0.54422432,68487.0,68472.0,0.0002]
[1770452992125,0.54422432,68487.0,68477.0,0.0002]
[1770452992620,0.014609,68486.0,68460.0,0.11732701]
[1770452993320,0.014609,68486.0,68461.0,0.014615]
[1770452993520,0.014609,68486.0,68478.0,0.0002]
[1770452993729,0.014609,68486.0,68481.0,0.0002]
[1770452994029,0.56016381,68486.0,68460.0,0.11732701]
[1770452994225,0.01461,68484.0,68470.0,0.0002]
[1770452994525,0.00010358,68483.0,68470.0,0.0002]
[1770452994728,0.00015722,68482.0,68480.0,0.0002]
[1770452994930,0.00012003,68481.0,68460.0,0.11732701]
[1770452995124,0.55658035,68484.0,68457.0,0.014616]
[1770452995431,0.54257035,68482.0,68463.0,0.0002]
[1770452995928,0.54257035,68480.0,68466.0,0.0002]
[1770452996124,0.00012968,68479.0,68466.0,0.0002]
[1770452996431,0.54257035,68478.0,68456.0,0.00012268]
[1770452996724,0.54257035,68478.0,68461.0,0.0002]
[1770452996929,0.54257035,68478.0,68456.0,0.00012268]
[1770452996930,0.54257035,68478.0,68464.0,0.0002]
[1770452998031,0.54257035,68478.0,68466.0,0.0002]
[1770452998529,0.54480782,68471.0,68456.0,0.00012268]
[1770452998934,0.55942082,68471.0,68456.0,0.00012268]
[1770452999232,0.56150426,68482.0,68457.0,0.10931719]
[1770452999531,0.54689426,68482.0,68470.0,0.0057]
[1770452999826,0.54689426,68482.0,68481.0,0.0071]
[1770453000028,0.54689426,68482.0,68459.0,0.12393219]
[1770453000534,0.54689426,68482.0,68463.0,0.014614]
[1770453000837,0.54492978,68499.0,68472.0,0.014612]
[1770453001525,0.54492978,68497.0,68472.0,0.014612]
[1770453001729,0.014604,68510.0,68471.0,0.11521065]
[1770453001730,0.54492978,68495.0,68471.0,0.11521065]
[1770453002030,0.54492978,68494.0,68471.0,0.014613]
[1770453002231,0.54577964,68492.0,68471.0,0.014613]
[1770453002430,0.54577964,68491.0,68471.0,0.014613]
[1770453002829,0.54577964,68491.0,68464.0,0.0002]
[1770453002830,0.54577964,68491.0,68464.0,0.11286105]
[1770453003024,0.014604,68510.0,68465.0,0.014614]
[1770453003025,0.54577964,68489.0,68465.0,0.014614]
[1770453003226,0.54577964,68487.0,68464.0,0.0002]
[1770453003429,0.54577964,68485.0,68461.0,0.014615]
[1770453004936,0.54523932,68494.0,68461.0,0.11428203]
[1770453005139,0.54523932,68494.0,68467.0,0.014613]
[1770453005633,0.00011352,68493.0,68470.0,0.014613]
[1770453005831,0.55539329,68490.0,68465.0,0.11428203]
[1770453006035,0.00015441,68489.0,68465.0,0.11428203]
[1770453006231,0.55539329,68489.0,68465.0,0.11428203]
[1770453006427,0.55539329,68489.0,68465.0,0.12889603]
[1770453006636,0.52134503,68516.0,68467.0,0.11056043]
[1770453006637,0.55539329,68499.0,68467.0,0.11056043]
[1770453006833,0.00010964,68488.0,68474.0,0.014612]
[1770453007031,0.55539329,68499.0,68467.0,0.11056043]
[1770453007231,0.55539329,68499.0,68476.0,0.014612]
[1770453008032,0.55539329,68499.0,68455.0,0.11056043]
[1770453008239,0.55539329,68494.0,68471.0,0.014613]
[1770453008438,0.55539329,68494.0,68468.0,0.12557628]
[1770453008935,0.55539329,68493.0,68460.0,0.11096328]
[1770453009140,0.55539329,68486.0,68460.0,0.12557828]
[1770453009339,0.54634557,68485.0,68462.0,0.014615]
[1770453009937,0.00012776,68484.0,68466.0,0.014614]
[1770453010139,0.00011961,68483.0,68466.0,0.11096328]
[1770453010446,0.54634557,68491.0,68483.0,0.0036]
[1770453010641,0.54424335,68489.0,68483.0,0.0025]
[1770453010836,0.54221001,68488.0,68482.0,0.0025]
[1770453011137,0.54221001,68487.0,68466.0,0.11096328]
[1770453011644,0.54221001,68506.0,68479.0,0.12336994]
[1770453011848,0.54221001,68506.0,68480.0,0.014611]
[1770453012045,0.54221001,68506.0,68482.0,0.01461]
[1770453012444,0.54221001,68506.0,68479.0,0.13798094]
[1770453012642,0.54262438,68505.0,68481.0,0.01461]
[1770453012941,0.54262438,68505.0,68482.0,0.12212683]
[1770453013134,0.54262438,68520.0,68482.0,0.12212683]
[1770453013333,0.54262438,68518.0,68487.0,0.014609]
[1770453013642,0.54262438,68515.0,68484.0,0.01461]
[1770453013844,0.54262438,68511.0,68484.0,0.01461]
[1770453014044,0.54262438,68509.0,68486.0,0.014609]
[1770453014641,6.552e-05,68508.0,68482.0,0.11973583]
[1770453014841,0.54262438,68509.0,68482.0,0.11973583]
[1770453015749,0.54262438,68509.0,68490.0,0.014609]
[1770453015949,0.54243444,68507.0,68482.0,0.11973583]
[1770453016246,0.54243444,68507.0,68488.0,0.014609]
[1770453016651,0.54153682,68506.0,68485.0,0.01461]
[1770453016847,0.54153682,68505.0,68485.0,0.01461]
[1770453017346,0.54153682,68505.0,68504.0,0.00089935]
[1770453017544,0.54153682,68501.0,68464.0,0.12538951]
[1770453017744,0.55614382,68499.0,68472.0,0.014612]
[1770453017951,0.54153682,68497.0,68472.0,0.014612]
[1770453018152,0.54153682,68495.0,68472.0,0.014612]
[1770453018340,0.54125415,68493.0,68469.0,0.014613]
[1770453018545,0.54125415,68491.0,68460.0,0.12868846]
[1770453018749,0.54125415,68489.0,68462.0,0.0002]
[1770453019054,0.54125415,68488.0,68462.0,0.0002]
[1770453019552,0.54125415,68488.0,68466.0,0.014614]
[1770453019744,0.54125415,68486.0,68468.0,0.014613]
[1770453019945,6.552e-05,68485.0,68470.0,0.014613]
[1770453020147,0.43372503,68508.0,68452.0,0.12868846]
[1770453020148,0.54125415,68484.0,68452.0,0.12868846]
[1770453020341,0.54318111,68482.0,68454.0,0.014616]
[1770453020542,6.552e-05,68481.0,68456.0,0.12045666]
[1770453020749,0.54204799,68492.0,68483.0,0.0026]
[1770453020947,0.54204799,68492.0,68458.0,0.014615]
[1770453020948,0.54204799,68492.0,68481.0,0.01461]
[1770453021154,0.54204799,68492.0,68476.0,0.00183729]
[1770453021356,0.54204799,68492.0,68467.0,0.12385601]
[1770453021550,0.54204799,68492.0,68475.0,0.014612]
[1770453022150,0.54204799,68492.0,68480.0,0.014611]
[1770453022356,0.54257738,68502.0,68470.0,0.11126783]
[1770453022747,0.54257738,68502.0,68491.0,0.0014]
[1770453023251,0.54257738,68502.0,68473.0,0.11126783]
[1770453023450,0.54257738,68502.0,68485.0,0.01461]
[1770453023650,0.54624405,68511.0,68501.0,0.0014]
[1770453023948,0.54624405,68509.0,68487.0,0.014609]
[1770453024152,0.54624405,68509.0,68490.0,0.014608]
[1770453024355,0.54624405,68509.0,68489.0,0.014609]
[1770453024856,6.552e-05,68508.0,68489.0,0.014609]
[1770453025057,6.552e-05,68507.0,68489.0,0.014609]
[1770453025249,0.54624405,68509.0,68508.0,0.001]
[1770453025447,0.54624405,68509.0,68489.0,0.014609]
[1770453025652,0.54624405,68509.0,68506.0,0.0034]
[1770453026053,0.54624405,68509.0,68489.0,0.014609]
[1770453026254,0.54563737,68508.0,68489.0,0.014609]
[1770453027355,0.54563737,68508.0,68491.0,0.014608]
[1770453027654,0.43372503,68511.0,68505.0,0.014605]
[1770453027863,0.54600193,68517.0,68502.0,0.014606]
[1770453028156,0.54600193,68517.0,68507.0,0.0014]
[1770453028949,0.54600193,68517.0,68507.0,0.016005]
[1770453029150,0.54528666,68537.0,68516.0,0.0027]
[1770453029346,0.5950608,68538.0,68516.0,0.0027]
[1770453029347,0.54528666,68534.0,68516.0,0.0027]
[1770453029761,0.54528666,68534.0,68516.0,0.00202442]
[1770453030158,0.54528666,68534.0,68504.0,0.11414001]
[1770453030357,0.54528666,68534.0,68512.0,0.014604]
[1770453031153,0.54528666,68534.0,68514.0,0.014603]
[1770453031556,0.54528666,68534.0,68504.0,0.12308133]
[1770453032058,0.54528666,68534.0,68502.0,0.014606]
[1770453032252,0.54528666,68534.0,68498.0,0.12308133]
[1770453032655,0.54528666,68534.0,68515.0,0.014603]
[1770453034658,0.54528666,68534.0,68518.0,0.014603]
[1770453035252,0.54528666,68534.0,68505.0,0.014605]
[1770453035759,0.9807436,68534.0,68518.0,0.014603]
[1770453036057,0.9807436,68534.0,68473.0,0.014612]
[1770453036058,0.5654376,68523.0,68485.0,0.15325684]
[1770453036365,0.5508356,68513.0,68490.0,0.014608]
[1770453036564,0.5508356,68507.0,68492.0,0.00463729]
[1770453036957,0.5508356,68507.0,68489.0,0.014609]
[1770453037360,0.5508356,68506.0,68489.0,0.014609]
[1770453038054,0.5508356,68506.0,68478.0,0.014611]
[1770453039461,0.55406719,68505.0,68489.0,0.014609]
[1770453040463,0.55406719,68505.0,68491.0,0.014608]
[1770453040958,0.98952413,68505.0,68491.0,0.014608]
[1770453041463,0.55406719,68505.0,68491.0,0.014608]
[1770453042161,0.55406719,68505.0,68504.0,0.0012]
[1770453042358,0.55406719,68505.0,68470.0,0.014613]
[1770453042359,0.55406719,68505.0,68471.0,0.09910046]
[1770453042560,0.55406719,68505.0,68478.0,0.014611]
[1770453043063,0.55406719,68505.0,68474.0,0.014612]
[1770453043659,0.55406719,68505.0,68474.0,0.11371246]
[1770453043864,0.55406719,68505.0,68484.0,0.01461]
[1770453044868,0.55406719,68505.0,68474.0,0.10732246]
[1770453045163,0.55406719,68505.0,68486.0,0.014609]
[1770453046053,0.55406719,68505.0,68467.0,0.014613]
[1770453046259,0.55406719,68505.0,68468.0,0.014613]
[1770453046464,0.55406719,68505.0,68467.0,0.11040923]
[1770453046767,0.55406719,68505.0,68480.0,0.014611]
[1770453047362,0.55406719,68505.0,68504.0,0.0012]
[1770453047562,0.55406719,68505.0,68480.0,0.014611]
[1770453047760,0.55406719,68505.0,68482.0,0.01461]
[1770453048456,0.55406719,68505.0,68492.0,0.014608]
[1770453048767,0.55406719,68505.0,68479.0,0.014611]
[1770453049568,0.55406719,68505.0,68504.0,0.0011]
[1770453050067,0.55406719,68505.0,68475.0,0.10437845]
[1770453050068,0.55406719,68505.0,68488.0,0.014609]
[1770453051068,0.55406719,68505.0,68478.0,0.10511804]
[1770453051570,0.55406719,68505.0,68488.0,0.014609]
[1770453052564,0.55406719,68505.0,68478.0,0.09772704]
[1770453052869,0.55406719,68505.0,68486.0,0.014609]
[1770453053560,0.55406719,68505.0,68488.0,0.014609]
[1770453053764,0.86752959,68546.0,68488.0,0.11476709]
[1770453054064,0.86752959,68546.0,68423.0,0.06444]
[1770453054065,0.5031356,68567.0,68555.0,0.014595]
[1770453054270,6e-07,68567.0,68541.0,0.14785809]
[1770453054457,0.5508356,68596.0,68557.0,0.14944576]
[1770453054656,0.5508356,68596.0,68573.0,0.014591]
[1770453054861,0.5508356,68596.0,68566.0,0.088]
[1770453055167,0.55064383,68596.0,68548.0,0.55374146]
[1770453055366,0.55064383,68596.0,68550.0,0.55374146]
[1770453055963,0.55064383,68596.0,68569.0,0.014592]
[1770453056365,0.55064383,68596.0,68550.0,0.55374146]
[1770453056668,0.55164383,68596.0,68550.0,0.55374146]
[1770453057270,0.55064383,68596.0,68550.0,0.55374146]
[1770453057473,0.55064383,68596.0,68569.0,0.014592]
[1770453057870,0.55064383,68596.0,68554.0,0.014595]
[1770453058069,0.5508356,68658.0,68570.0,0.55374146]
[1770453058267,0.5508356,68642.0,68599.0,0.55374146]
[1770453058466,0.5508356,68642.0,68604.0,0.072923]
[1770453058670,0.5508356,68640.0,68616.0,0.014582]
[1770453059076,0.5508356,68638.0,68610.0,0.014583]
[1770453059276,0.5508356,68638.0,68613.0,0.014582]
[1770453059478,0.5508356,68636.0,68627.0,0.014579]
[1770453059675,0.5508356,68636.0,68609.0,0.55374146]
[1770453059977,0.5508356,68636.0,68601.0,0.014585]
[1770453059978,0.4611356,68646.0,68635.0,0.014578]
[1770453060179,0.4611356,68646.0,68630.0,0.014579]
[1770453060478,0.4611356,68646.0,68635.0,0.0217]
[1770453060776,0.4611356,68646.0,68603.0,0.55374146]
[1770453060973,0.4611356,68646.0,68623.0,0.01458]
[1770453061772,0.4611356,68646.0,68619.0,0.014581]
[1770453062170,0.4611356,68646.0,68623.0,0.01458]
[1770453062672,0.5508356,68642.0,68605.0,0.014584]
[1770453062873,0.0002,68672.0,68583.0,0.32596]
[1770453062874,0.5508356,68683.0,68660.0,0.014572]
[1770453063079,0.5508356,68669.0,68640.0,0.072886]
[1770453063279,6e-07,68669.0,68641.0,0.0783]
[1770453063474,6e-07,68669.0,68641.0,0.63204146]
[1770453063681,6e-07,68669.0,68640.0,0.014577]
[1770453063876,6e-07,68669.0,68644.0,0.014576]
[1770453064374,6e-07,68669.0,68648.0,0.014575]
[1770453064571,6e-07,68669.0,68641.0,0.001]
[1770453064769,0.5508356,68679.0,68643.0,0.55374146]
[1770453064982,0.5508356,68679.0,68659.0,0.014573]
[1770453065272,0.014564,68702.0,68663.0,0.014572]
[1770453065478,0.5508356,68701.0,68663.0,0.014572]
[1770453065679,0.5508356,68698.0,68658.0,0.014573]
[1770453065980,0.53202618,68687.0,68648.0,0.014575]
[1770453066174,0.53202618,68687.0,68652.0,0.014574]
[1770453066373,0.53202618,68687.0,68656.0,0.014573]
[1770453067582,0.53202618,68687.0,68650.0,0.70904204]
[1770453067777,0.53202618,68687.0,68653.0,0.014574]
[1770453068076,0.53202618,68687.0,68658.0,0.014573]
[1770453068276,0.53202618,68687.0,68653.0,0.014574]
[1770453068473,0.53202618,68687.0,68650.0,0.68361604]
[1770453068772,0.53202618,68687.0,68653.0,0.014574]
[1770453068972,0.014566,68691.0,68586.0,0.06436]
[1770453068973,0.53202618,68678.0,68630.0,0.14944576]
[1770453069170,0.53202618,68678.0,68631.0,0.55959628]
[1770453069368,0.57001344,68676.0,68631.0,0.55959628]
[1770453069571,0.57001344,68674.0,68634.0,0.014578]
[1770453070080,0.04316337,68749.0,68677.0,0.014569]
[1770453070081,0.57001344,68737.0,68677.0,0.014569]
[1770453070379,0.56996344,68732.0,68673.0,0.61366644]
[1770453070581,0.57001344,68730.0,68673.0,0.61366644]
[1770453070783,0.57001344,68725.0,68684.0,0.014567]
[1770453070975,0.57001344,68719.0,68678.0,0.014569]
[1770453071279,0.57001344,68719.0,68679.0,0.55963444]
[1770453071280,0.57001344,68713.0,68679.0,0.55963444]
[1770453071481,0.57001344,68713.0,68680.0,0.14939576]
[1770453072379,0.57001344,68713.0,68614.0,0.07303456]
[1770453072380,0.58457744,68701.0,68660.0,0.16401776]
[1770453073080,0.014565,68697.0,68660.0,0.16401776]
[1770453073277,0.57001344,68696.0,68660.0,0.16401776]
[1770453073478,0.57001344,68696.0,68657.0,0.54506644]
[1770453073479,0.57001344,68691.0,68657.0,0.54506644]
[1770453073876,0.57001344,68691.0,68658.0,0.014573]
[1770453074283,0.014559,68725.0,68658.0,0.014573]
[1770453074284,0.57001344,68748.0,68682.0,0.54506644]
[1770453074474,0.57001344,68748.0,68721.0,0.014559]
[1770453074782,0.57001344,68748.0,68710.0,0.14944576]
[1770453074978,0.57001344,68744.0,68702.0,0.54506644]
[1770453075179,0.570014,68740.0,68704.0,0.014563]
[1770453075680,0.570014,68740.0,68702.0,0.54506644]
[1770453075681,0.57001344,68728.0,68691.0,0.014566]
[1770453075879,0.58457144,68728.0,68691.0,0.014566]
[1770453076078,5.6e-07,68740.0,68690.0,0.14944576]
[1770453076079,0.57001344,68721.0,68690.0,0.14944576]
[1770453076279,0.57001344,68719.0,68690.0,0.10944576]
[1770453076483,0.58457444,68713.0,68680.0,0.14944576]
[1770453076674,0.57001344,68713.0,68680.0,0.14944576]
[1770453077684,0.57001344,68713.0,68692.0,0.014566]
[1770453077982,0.57001344,68731.0,68691.0,0.54506644]
[1770453078191,0.57001344,68726.0,68680.0,0.6945122]
[1770453078379,0.57001344,68726.0,68690.0,0.001]
[1770453078887,0.57001344,68721.0,68690.0,0.001]
[1770453079381,0.57001344,68719.0,68680.0,0.6945122]
[1770453079584,0.57001344,68719.0,68682.0,0.014568]
[1770453080093,0.57001344,68719.0,68629.0,0.11526593]
[1770453080094,0.014549,68774.0,68710.0,0.54506644]
[1770453080277,0.57001344,68774.0,68748.0,0.014554]
[1770453080482,0.57001344,68774.0,68737.0,0.014556]
[1770453080780,0.57001344,68756.0,68719.0,0.01456]
[1770453080982,0.57001344,68753.0,68715.0,0.55962744]
[1770453081188,0.57001344,68750.0,68718.0,0.01456]
[1770453081387,0.57001344,68750.0,68734.0,0.07872029]
[1770453082188,0.57001344,68750.0,68723.0,0.014559]
[1770453082781,0.57001344,68750.0,68726.0,0.014558]
[1770453082977,0.57001344,68763.0,68730.0,0.14944576]
[1770453083588,0.57001344,68741.0,68695.0,0.54506644]
[1770453083889,0.57001344,68737.0,68695.0,0.54506644]
[1770453084092,0.57001344,68737.0,68705.0,0.014563]
[1770453084290,0.0002,68766.0,68690.0,0.14944576]
[1770453084291,0.1462,68788.0,68696.0,0.072826]
[1770453084504,0.57021344,68773.0,68740.0,0.14944576]
[1770453084701,0.57001344,68773.0,68760.0,0.014551]
[1770453084906,0.57001344,68813.0,68767.0,0.54506644]
[1770453085096,0.57001344,68807.0,68771.0,0.014549]
[1770453085297,0.57001344,68807.0,68766.0,0.01455]
[1770453085493,0.57001344,68798.0,68760.0,0.69316053]
[1770453085704,0.57001344,68796.0,68760.0,0.69316053]
[1770453085900,0.014539,68821.0,68760.0,0.14809409]
[1770453085901,0.57001344,68793.0,68760.0,0.14809409]
[1770453086105,0.57001344,68789.0,68760.0,0.14809409]
[1770453086399,0.57001344,68792.0,68771.0,0.001]
[1770453086604,0.57001344,68792.0,68755.0,0.014552]
[1770453086903,0.57001344,68792.0,68750.0,0.54506644]
[1770453087303,0.57001344,68792.0,68759.0,0.014551]
[1770453088200,0.57001344,68792.0,68755.0,0.014552]
[1770453088407,0.57001344,68792.0,68754.0,0.014552]
[1770453088604,0.57001344,68784.0,68741.0,0.014555]
[1770453088796,0.57001344,68784.0,68741.0,0.55962144]
[1770453089000,0.58455944,68784.0,68745.0,0.50506644]
[1770453089201,0.58456044,68780.0,68745.0,0.50506644]
[1770453089708,0.57001344,68780.0,68745.0,0.50506644]
[1770453089904,0.57001344,68780.0,68751.0,0.014553]
[1770453090302,0.57001344,68780.0,68731.0,0.072788]
[1770453090303,0.57001344,68838.0,68796.0,0.54506644]
[1770453090500,0.57001344,68836.0,68796.0,0.54506644]
[1770453090700,0.57001344,68836.0,68807.0,0.014541]
[1770453090907,0.57001344,68834.0,68796.0,0.54506644]
[1770453091108,0.57001344,68834.0,68798.0,0.014543]
[1770453091304,0.57001344,68834.0,68796.0,0.54506644]
[1770453091507,0.57001344,68834.0,68798.0,0.014543]
[1770453091810,0.57001344,68829.0,68790.0,0.14809409]
[1770453092004,0.57001344,68827.0,68790.0,0.14809409]
[1770453092210,0.57001344,68818.0,68784.0,0.54506644]
[1770453092412,0.58455344,68815.0,68779.0,0.014547]
[1770453092606,0.57001344,68799.0,68762.0,0.54506644]
[1770453092913,0.57001344,68799.0,68750.0,0.14809409]
[1770453092914,0.57001344,68787.0,68750.0,0.014553]
[1770453093098,0.57001344,68785.0,68750.0,0.014553]
[1770453094605,0.0002,68798.0,68751.0,0.54506644]
[1770453094809,0.0002,68798.0,68725.0,0.072795]
[1770453094810,0.57001344,68833.0,68790.0,0.014545]
[1770453095108,0.57001344,68833.0,68779.0,0.54506644]
[1770453095312,0.0002,68835.0,68790.0,0.14809409]
[1770453095313,0.57001344,68827.0,68790.0,0.14809409]